bitfinex/quotes_SOLUSD_20240813
["timestamp","ask_amount","ask_price","bid_price","bid_amount"]
[1723561157661,39.13,146.68,146.62,15.5503]
[1723561157831,45.9478,146.68,146.62,15.5503]
[1723561158033,39.13,146.66,146.62,15.5503]
[1723561158936,39.13,146.66,146.6,0.37647]
[1723561159155,39.13,146.66,146.6,45.37647]
[1723561160660,46.21864052,146.7,146.62,6.433]
[1723561160831,46.21864052,146.7,146.63,45.50196]
[1723561160832,39.13,146.7,146.63,45.50196]
[1723561162445,40.83478959,146.7,146.63,45.50196]
[1723561162837,1.70477318,146.69,146.63,45.50196]
[1723561163462,8.52187318,146.69,146.63,45.50196]
[1723561163645,39.13,146.68,146.62,6.433]
[1723561163849,39.13,146.66,146.59,21.8773]
[1723561164044,1.70513107,146.65,146.59,21.8773]
[1723561164259,39.13,146.66,146.59,21.8773]
[1723561164663,1.7051022,146.65,146.59,21.8773]
[1723561164975,40.83535695,146.64,146.59,21.8773]
[1723561165153,40.83535695,146.64,146.48,10.63898647]
[1723561165154,39.13,146.62,146.55,22.601]
[1723561165461,1.7057837,146.61,146.55,22.601]
[1723561165673,1.70580507,146.6,146.55,22.601]
[1723561166158,39.13,146.62,146.55,22.601]
[1723561166544,39.13,146.65,146.55,22.601]
[1723561166749,1.70546706,146.64,146.55,22.601]
[1723561166953,39.13,146.65,146.55,22.601]
[1723561167259,39.13,146.63,146.56,45.12549]
[1723561167638,39.13,146.63,146.57,0.25098]
[1723561167851,39.13,146.63,146.58,0.25098]
[1723561168167,39.13,146.63,146.59,0.12549]
[1723561168345,1.70547302,146.62,146.58,0.25098]
[1723561168545,39.13,146.63,146.58,0.12549]
[1723561168972,1.70546748,146.62,146.57,0.37647]
[1723561169164,1.70546748,146.62,146.57,0.25098]
[1723561169359,45.9511,146.61,146.55,22.601]
[1723561169661,39.13,146.59,146.55,16.1621]
[1723561169868,1.70598046,146.58,146.55,16.1621]
[1723561170170,1.705991,146.57,146.52,6.3112]
[1723561170543,39.13,146.59,146.52,6.3112]
[1723561171264,39.13,146.57,146.52,6.3112]
[1723561171673,39.13,146.57,146.51,15.4715]
[1723561171968,40.83626081,146.57,146.51,15.4715]
[1723561172163,47.65906081,146.57,146.51,15.4715]
[1723561172372,39.13,146.55,146.47,21.7827]
[1723561172576,1.70658827,146.54,146.47,21.7827]
[1723561174073,1.70658827,146.54,146.48,0.12549]
[1723561174763,39.13,146.55,146.49,0.12549]
[1723561175075,39.13,146.55,146.49,0.37647]
[1723561175280,39.13,146.55,146.5,0.12549]
[1723561175481,39.13,146.55,146.5,0.37647]
[1723561175652,1.70641641,146.54,146.5,0.37647]
[1723561175964,39.13,146.55,146.5,0.37647]
[1723561175965,1.70646659,146.53,146.5,0.37647]
[1723561176159,39.13,146.55,146.5,0.37647]
[1723561176354,39.13,146.57,146.5,0.37647]
[1723561176552,39.13,146.57,146.51,0.12549]
[1723561176970,39.13,146.55,146.51,0.12549]
[1723561177178,1.70648703,146.54,146.51,0.12549]
[1723561177386,39.13,146.55,146.51,0.12549]
[1723561177770,1.70641063,146.54,146.51,0.12549]
[1723561178154,1.70641063,146.54,146.5,0.25098]
[1723561178349,1.70641063,146.54,146.49,0.37647]
[1723561178574,1.70641063,146.54,146.5,0.12549]
[1723561178871,39.13,146.57,146.5,0.12549]
[1723561179067,39.13,146.59,146.5,0.12549]
[1723561179478,45.9518,146.59,146.5,0.12549]
[1723561179676,39.13,146.59,146.5,0.12549]
[1723561180175,8.52852997,146.58,146.5,0.12549]
[1723561180371,47.65885174,146.57,146.5,0.12549]
[1723561180879,1.70649557,146.56,146.5,0.12549]
[1723561181094,1.70646017,146.55,146.5,0.12549]
[1723561181387,1.70646076,146.54,146.5,0.12549]
[1723561181681,1.70652354,146.53,146.5,0.12549]
[1723561181986,31.35,146.55,146.5,0.12549]
[1723561182575,31.35,146.55,146.49,0.37647]
[1723561182781,1.70649379,146.54,146.49,0.37647]
[1723561183659,31.35,146.55,146.5,0.12549]
[1723561185477,33.05649401,146.55,146.49,0.37647]
[1723561185651,1.70649401,146.54,146.49,0.37647]
[1723561185855,31.35,146.55,146.49,0.37647]
[1723561186272,33.05657088,146.55,146.49,0.37647]
[1723561186455,1.70657088,146.54,146.49,0.37647]
[1723561186654,33.05657091,146.55,146.49,0.37647]
[1723561186878,31.35,146.55,146.49,0.37647]
[1723561187182,31.35,146.55,146.5,0.12549]
[1723561187966,31.35,146.57,146.51,0.12549]
[1723561188285,31.35,146.57,146.51,0.37647]
[1723561188463,31.35,146.57,146.52,0.12549]
[1723561188863,31.35,146.57,146.53,0.12549]
[1723561189075,31.35,146.59,146.53,0.37647]
[1723561189273,37.7039,146.65,146.55,0.12549]
[1723561189274,31.35,146.61,146.55,0.12549]
[1723561189476,31.35,146.61,146.55,45.37647]
[1723561189668,31.35,146.61,146.56,0.12549]
[1723561189866,38.44222857,146.63,146.57,0.12549]
[1723561190180,31.35,146.63,146.57,0.12549]
[1723561190482,31.35,146.63,146.57,0.37647]
[1723561190669,31.35,146.63,146.58,0.12549]
[1723561190872,31.35,146.63,146.59,0.12549]
[1723561191060,7.09233689,146.66,146.6,16.5634]
[1723561191265,6.8161,146.71,146.6,16.5634]
[1723561191266,31.35,146.69,146.61,45.37647]
[1723561191487,31.35,146.69,146.62,0.12549]
[1723561191682,39.87198372,146.69,146.62,0.12549]
[1723561191880,45.9372,146.69,146.62,0.12549]
[1723561192180,39.12,146.69,146.62,0.12549]
[1723561194482,39.12,146.71,146.64,0.12549]
[1723561194787,39.12,146.71,146.64,45.50196]
[1723561196881,45.9362,146.71,146.64,45.50196]
[1723561197700,39.12,146.73,146.66,15.2236]
[1723561197990,39.12,146.73,146.67,45.50196]
[1723561198810,39.12,146.75,146.67,45.50196]
[1723561199499,45.9343,146.75,146.67,45.50196]
[1723561200280,39.12,146.75,146.67,45.50196]
[1723561200478,39.12,146.79,146.69,0.12549]
[1723561200676,39.12,146.79,146.69,45.50196]
[1723561200990,53.02007143,146.79,146.69,45.50196]
[1723561201164,39.12,146.77,146.69,45.50196]
[1723561201371,39.12,146.73,146.69,45.50196]
[1723561201580,1.70424,146.72,146.69,45.12549]
[1723561201764,39.12,146.73,146.68,6.5104]
[1723561201963,1.70422422,146.72,146.68,6.5104]
[1723561202561,39.12,146.73,146.68,6.5104]
[1723561203291,1.7043255,146.72,146.68,6.5104]
[1723561203488,39.12,146.73,146.68,6.5104]
[1723561203689,47.9119972,146.79,146.69,0.37647]
[1723561203690,39.12,146.75,146.69,0.37647]
[1723561203988,39.12,146.77,146.7,0.25098]
[1723561204191,39.12,146.77,146.71,0.25098]
[1723561204486,39.12,146.77,146.72,0.12549]
[1723561204703,39.12,146.77,146.72,0.50196]
[1723561204989,39.12,146.77,146.72,0.37647]
[1723561206794,39.12,146.77,146.68,6.5104]
[1723561207902,39.12,146.77,146.69,45.25098]
[1723561208106,39.12,146.77,146.71,0.12549]
[1723561208394,39.12,146.77,146.71,0.25098]
[1723561208703,39.12,146.75,146.68,6.5104]
[1723561208908,8.51906579,146.74,146.68,6.5104]
[1723561209092,39.12,146.73,146.68,6.5104]
[1723561209401,45.9363,146.71,146.64,6.5078]
[1723561210070,39.12,146.71,146.64,6.5078]
[1723561210482,1.70461991,146.7,146.64,6.5078]
[1723561211200,2.78509241,146.75,146.64,6.5078]
[1723561211201,39.12,146.75,146.64,6.5078]
[1723561211399,39.12,146.75,146.67,0.25098]
[1723561211701,13.89722563,146.79,146.69,0.12549]
[1723561212003,45.933,146.78,146.69,0.25098]
[1723561212290,45.933,146.78,146.71,0.12549]
[1723561212503,39.12,146.78,146.71,0.25098]
[1723561212676,39.12,146.78,146.72,0.25098]
[1723561212878,1.70385359,146.77,146.72,45.25098]
[1723561213078,1.70388302,146.76,146.72,45.25098]
[1723561214004,39.12,146.78,146.72,45.0]
[1723561214176,1.70395228,146.77,146.71,6.4901]
[1723561214512,39.12,146.74,146.67,6.5376]
[1723561215185,1.7042631,146.73,146.67,6.5376]
[1723561215380,1.70426507,146.73,146.67,6.5376]
[1723561215704,39.12,146.7,146.63,6.1541]
[1723561216075,39.12,146.73,146.63,6.1541]
[1723561216489,1.70442679,146.72,146.63,6.1541]
[1723561216693,39.12,146.73,146.63,6.1541]
[1723561216910,39.12,146.73,146.65,0.12549]
[1723561217118,6.8157,146.72,146.65,0.12549]
[1723561217282,39.12,146.73,146.67,0.25098]
[1723561217479,39.12,146.75,146.67,0.25098]
[1723561217796,20.0,146.74,146.67,0.25098]
[1723561217998,21.70430983,146.74,146.67,0.25098]
[1723561218180,21.70430983,146.74,146.68,0.37647]
[1723561218376,39.12,146.75,146.69,0.12549]
[1723561218815,1.70431675,146.74,146.69,0.12549]
[1723561219106,1.70431947,146.73,146.68,0.37647]
[1723561219278,40.82431947,146.73,146.67,45.0]
[1723561219483,6.8159,146.72,146.67,45.0]
[1723561220101,47.63951947,146.73,146.67,45.0]
[1723561220300,45.9364,146.71,146.66,15.2236]
[1723561220608,1.7046654,146.7,146.66,15.2236]
[1723561221082,39.12,146.71,146.66,15.2236]
[1723561221282,40.82466513,146.71,146.66,15.2236]
[1723561221508,1.70466513,146.7,146.66,15.2236]
[1723561221700,39.12,146.71,146.66,15.2236]
[1723561222017,1.70458742,146.7,146.66,15.2236]
[1723561222314,39.12,146.71,146.66,15.2236]
[1723561222681,1.70467097,146.7,146.66,15.2236]
[1723561223199,39.12,146.71,146.66,15.2236]
[1723561223584,39.12,146.73,146.66,15.2236]
[1723561223794,39.12,146.73,146.67,45.0]
[1723561224900,1.70453081,146.72,146.67,45.0]
[1723561225097,39.12,146.73,146.67,45.0]
[1723561225615,39.12,146.75,146.68,0.50196]
[1723561225813,65.9344,146.75,146.68,0.50196]
[1723561225988,39.12,146.71,146.66,15.2236]
[1723561226311,39.12,146.69,146.66,15.2236]
[1723561226609,1.7047989,146.68,146.66,15.2236]
[1723561226999,39.12,146.69,146.66,15.2236]
[1723561228396,1.70474491,146.68,146.66,15.2236]
[1723561228712,39.12,146.69,146.66,15.2236]
[1723561229404,39.12,146.69,146.63,21.4628]
[1723561229405,1.70474476,146.68,146.63,21.4628]
[1723561229598,39.12,146.69,146.63,21.4628]
[1723561230717,1.70502348,146.68,146.63,21.4628]
[1723561231313,39.12,146.69,146.63,21.4628]
[1723561234424,39.12,146.69,146.64,0.12549]
[1723561234601,39.12,146.69,146.64,45.37647]
[1723561235110,1.70485334,146.68,146.63,21.4628]
[1723561235718,39.12,146.69,146.64,0.12549]
[1723561236021,39.12,146.69,146.64,45.25098]
[1723561238112,31.29,146.69,146.64,45.25098]
[1723561238492,8.79596194,146.72,146.64,45.25098]
[1723561238493,31.29,146.71,146.65,0.12549]
[1723561238904,31.29,146.71,146.65,0.25098]
[1723561239122,31.29,146.71,146.66,0.25098]
[1723561240008,13.90538629,146.74,146.67,0.12549]
[1723561240009,31.29,146.73,146.67,0.12549]
[1723561240219,31.29,146.73,146.67,0.25098]
[1723561240798,31.29,146.73,146.68,0.25098]
[1723561241632,31.29,146.75,146.68,0.25098]
[1723561241930,31.29,146.75,146.69,16.26199]
[1723561242819,31.29,146.75,146.7,45.25098]
[1723561244131,31.29,146.77,146.7,51.78498]
[1723561244330,1.70397073,146.76,146.71,0.12549]
[1723561244510,1.70397073,146.76,146.71,0.25098]
[1723561244828,1.70397073,146.76,146.7,51.78498]
[1723561245324,31.29,146.77,146.71,0.12549]
[1723561245533,31.29,146.77,146.71,0.25098]
[1723561246039,38.37772647,146.8,146.73,0.12549]
[1723561246200,31.29,146.8,146.73,0.25098]
[1723561247234,31.29,146.8,146.75,15.3628]
[1723561248835,31.29,146.8,146.77,0.12549]
[1723561249135,31.29,146.82,146.77,0.37647]
[1723561249335,32.99332348,146.84,146.77,6.75287]
[1723561249636,31.29,146.86,146.78,0.12549]
[1723561249846,31.29,146.84,146.79,0.12549]
[1723561250339,31.29,146.84,146.79,45.0]
[1723561250545,31.29,146.84,146.79,0.25098]
[1723561251810,31.29,146.84,146.78,45.12549]
[1723561251811,31.29,146.84,146.78,0.12549]
[1723561252018,31.29,146.84,146.77,6.50189]
[1723561252411,31.29,146.84,146.78,45.12549]
[1723561253012,31.29,146.84,146.79,0.37647]
[1723561255412,31.29,146.86,146.8,0.25098]
[1723561256141,31.29,146.88,146.82,0.12549]
[1723561256446,31.29,146.88,146.82,45.25098]
[1723561256818,1.70264135,146.87,146.82,45.12549]
[1723561257020,31.29,146.88,146.82,45.12549]
[1723561257021,38.0985,146.88,146.82,45.12549]
[1723561257333,31.29,146.88,146.81,15.72098]
[1723561257648,31.29,146.88,146.82,45.25098]
[1723561258318,1.70276161,146.87,146.82,45.25098]
[1723561258646,31.29,146.88,146.83,0.12549]
[1723561258941,31.29,146.88,146.83,0.25098]
[1723561259151,31.29,146.88,146.82,45.25098]
[1723561260435,31.29,146.88,146.83,0.25098]
[1723561261021,1.70258159,146.87,146.83,0.12549]
[1723561261229,31.29,146.88,146.83,0.12549]
[1723561261436,31.29,146.88,146.83,0.25098]
[1723561261637,31.29,146.88,146.84,0.12549]
[1723561261929,31.29,146.88,146.84,0.25098]
[1723561264138,31.29,146.91,146.85,0.12549]
[1723561264461,31.29,146.91,146.85,45.25098]
[1723561264756,38.0969,146.91,146.85,45.25098]
[1723561265125,31.29,146.91,146.85,45.25098]
[1723561266449,31.29,146.89,146.84,6.1429]
[1723561266650,31.29,146.89,146.85,45.25098]
[1723561266852,6.806,146.93,146.87,15.538]
[1723561267066,31.29,146.93,146.87,15.538]
[1723561267233,31.29,146.93,146.88,45.37647]
[1723561268628,0.8275496,146.94,146.89,0.12549]
[1723561268835,0.8275496,146.94,146.9,0.12549]
[1723561269036,0.8275496,146.94,146.89,0.12549]
[1723561269237,0.8275496,146.94,146.91,16.4051]
[1723561269460,0.8275496,146.94,146.92,46.86242685]
[1723561269674,6.8059,146.93,146.87,16.4051]
[1723561269837,31.29,146.92,146.88,45.0]
[1723561270663,32.1175496,146.94,146.88,45.0]
[1723561271078,31.29,146.9,146.81,6.2676]
[1723561271240,31.29,146.87,146.82,15.7023]
[1723561271633,31.29,146.85,146.82,15.7023]
[1723561272057,38.0997,146.85,146.82,15.7023]
[1723561272241,31.29,146.85,146.82,15.7023]
[1723561272741,31.29,146.87,146.82,15.7023]
[1723561272944,31.29,146.85,146.82,15.7023]
[1723561273149,31.29,146.83,146.78,16.3106]
[1723561273462,31.29,146.86,146.78,16.3106]
[1723561273640,38.0993,146.86,146.78,16.3106]
[1723561273840,31.29,146.86,146.78,16.3106]
[1723561274264,31.29,146.86,146.79,45.25098]
[1723561274568,31.29,146.88,146.81,0.12549]
[1723561274862,31.29,146.88,146.81,0.25098]
[1723561275051,31.29,146.88,146.82,0.25098]
[1723561275447,31.29,146.86,146.81,0.12549]
[1723561275768,31.29,146.84,146.8,0.25098]
[1723561275944,31.29,146.84,146.78,16.3106]
[1723561276146,1.70303211,146.89,146.68,339.96159702]
[1723561276147,6.8119,146.81,146.74,15.3693]
[1723561276361,31.29,146.82,146.74,15.3693]
[1723561276362,38.1011,146.82,146.74,15.3693]
[1723561276545,31.29,146.82,146.74,15.3693]
[1723561277368,31.29,146.82,146.75,0.12549]
[1723561277540,31.29,146.82,146.75,45.37647]
[1723561278376,20.0,146.83,146.75,45.37647]
[1723561278677,31.29,146.82,146.76,0.25098]
[1723561278879,31.29,146.82,146.77,0.37647]
[1723561279062,31.29,146.84,146.78,0.25098]
[1723561279378,31.29,146.86,146.8,0.12549]
[1723561279771,31.29,146.86,146.81,15.752]
[1723561280378,31.29,146.86,146.82,45.37647]
[1723561280978,31.29,146.88,146.83,0.12549]
[1723561281272,1.70254221,146.87,146.83,0.12549]
[1723561281457,1.70254221,146.87,146.82,45.37647]
[1723561281655,38.0983,146.88,146.82,45.37647]
[1723561281856,31.29,146.88,146.82,45.37647]
[1723561282068,38.0984,146.88,146.82,45.37647]
[1723561282250,31.29,146.86,146.81,22.2099]
[1723561282458,31.29,146.86,146.81,15.752]
[1723561282459,31.29,146.84,146.81,15.752]
[1723561283080,38.1001,146.84,146.8,0.12549]
[1723561283247,31.29,146.82,146.77,22.1986]
[1723561284183,31.29,146.84,146.77,22.1986]
[1723561284684,31.29,146.84,146.78,0.25098]
[1723561284877,31.29,146.84,146.79,0.25098]
[1723561285186,1.70291067,146.83,146.79,0.25098]
[1723561285397,31.29,146.84,146.8,0.25098]
[1723561285880,1.70292753,146.83,146.8,0.25098]
[1723561286182,31.29,146.84,146.8,0.25098]
[1723561286592,31.29,146.86,146.8,0.25098]
[1723561286879,31.29,146.88,146.82,0.12549]
[1723561287261,31.29,146.88,146.82,0.25098]
[1723561287491,31.29,146.88,146.83,0.25098]
[1723561287669,31.29,146.88,146.84,0.25098]
[1723561287859,31.29,146.9,146.85,0.25098]
[1723561288252,6.8081,146.89,146.85,45.12549]
[1723561288453,31.29,146.9,146.85,45.0]
[1723561289455,31.29,146.9,146.85,51.361]
[1723561289755,31.29,146.9,146.86,0.37647]
[1723561290175,1.70225644,146.89,146.86,0.37647]
[1723561290372,31.29,146.88,146.84,16.576]
[1723561290573,31.29,146.86,146.84,16.576]
[1723561290779,31.29,146.86,146.8,22.7232]
[1723561290960,31.29,146.84,146.8,22.7232]
[1723561291161,31.29,146.84,146.8,16.5388]
[1723561291388,48.3137,146.86,146.76,6.6245]
[1723561291389,38.101,146.82,146.76,22.5035]
[1723561291592,1.70320527,146.81,146.76,22.5035]
[1723561291786,31.29,146.84,146.76,22.5035]
[1723561292092,31.29,146.88,146.76,22.5035]
[1723561292300,20.0,146.87,146.76,32.73360171]
[1723561292663,31.29,146.88,146.79,0.12549]
[1723561292884,31.29,146.9,146.79,45.50196]
[1723561293084,20.0,146.89,146.79,45.50196]
[1723561293280,31.29,146.88,146.79,45.50196]
[1723561293489,32.99267838,146.88,146.79,45.50196]
[1723561293784,31.29,146.86,146.79,45.50196]
[1723561293986,39.03,146.87,146.79,45.50196]
[1723561294196,6.8101,146.84,146.78,15.6584]
[1723561294396,40.73302539,146.85,146.78,15.6584]
[1723561294561,39.03,146.87,146.78,15.6584]
[1723561295002,45.8389,146.87,146.78,15.6584]
[1723561295194,39.03,146.87,146.78,15.6584]
[1723561295407,39.03,146.87,146.79,0.25098]
[1723561295699,45.8389,146.87,146.81,0.12549]
[1723561295864,39.03,146.87,146.81,0.25098]
[1723561296066,39.03,146.87,146.83,0.12549]
[1723561296275,59.03,146.89,146.83,0.25098]
[1723561296461,59.03,146.89,146.82,0.25098]
[1723561296462,39.03,146.87,146.82,0.12549]
[1723561296966,39.03,146.87,146.82,0.25098]
[1723561297186,39.03,146.87,146.82,0.12549]
[1723561297697,39.03,146.87,146.78,15.6584]
[1723561298365,20.0,146.89,146.79,6.2887]
[1723561298580,26.8076,146.9,146.79,6.2887]
[1723561299177,20.0,146.9,146.8,45.50196]
[1723561299603,26.8074,146.9,146.8,45.50196]
[1723561299816,39.03,146.89,146.8,45.50196]
[1723561299985,45.839,146.87,146.8,45.0]
[1723561300409,39.03,146.85,146.8,45.0]
[1723561300710,6.8105,146.84,146.79,6.2887]
[1723561300911,20.0,146.9,146.78,15.6584]
[1723561300912,40.73318662,146.83,146.78,15.6584]
[1723561301080,8.51433976,146.82,146.78,15.6584]
[1723561301280,1.70323976,146.82,146.78,15.6584]
[1723561301688,39.03,146.83,146.78,15.6584]
[1723561302794,40.73323732,146.83,146.78,15.6584]
[1723561302986,39.03,146.83,146.78,15.6584]
[1723561304014,46.14806062,146.86,146.79,0.12549]
[1723561304206,46.14806062,146.86,146.79,45.50196]
[1723561304207,20.0,146.85,146.79,45.50196]
[1723561304716,39.03,146.86,146.79,45.50196]
[1723561305634,39.03,146.9,146.79,45.50196]
[1723561305988,45.8373,146.9,146.82,0.12549]
[1723561306196,1.70248366,146.89,146.82,45.50196]
[1723561306394,8.51028366,146.89,146.82,45.50196]
[1723561306604,6.8089,146.87,146.82,45.37647]
[1723561306808,39.03,146.88,146.82,45.25098]
[1723561307399,39.03,146.88,146.83,0.12549]
[1723561307714,39.03,146.9,146.83,0.37647]
[1723561307913,20.0,146.89,146.83,0.25098]
[1723561308398,39.03,146.9,146.84,0.25098]
[1723561308603,39.03,146.9,146.85,0.25098]
[1723561309215,40.73229442,146.9,146.81,16.3123]
[1723561309408,40.73229442,146.9,146.82,0.25098]
[1723561309409,6.8079,146.89,146.82,0.25098]
[1723561309608,6.8084,146.88,146.82,0.37647]
[1723561309927,45.8373,146.9,146.82,0.37647]
[1723561310102,45.8374,146.9,146.82,0.37647]
[1723561310308,39.03,146.9,146.83,0.12549]
[1723561312101,45.8373,146.9,146.82,45.0]
[1723561312411,39.03,146.9,146.82,45.0]
[1723561313417,39.03,146.88,146.82,45.0]
[1723561313623,39.03,146.88,146.81,16.3123]
[1723561313624,45.8395,146.86,146.81,16.3123]
[1723561313928,39.03,146.84,146.81,16.3123]
[1723561314130,6.8107,146.83,146.77,15.0732]
[1723561314336,8.51395661,146.83,146.77,15.0732]
[1723561314543,1.70325661,146.83,146.77,15.0732]
[1723561315607,8.51385661,146.83,146.77,15.0732]
[1723561316435,39.03,146.82,146.77,15.0732]
[1723561316639,1.70325511,146.81,146.77,15.0732]
[1723561317503,39.03,146.82,146.77,15.0732]
[1723561320837,1.70324996,146.81,146.77,15.0732]
[1723561321005,39.03,146.82,146.77,15.0732]
[1723561321213,45.8422,146.8,146.74,26.58853728]
[1723561321412,39.03,146.78,146.74,16.3569]
[1723561321616,1.70362538,146.77,146.74,16.3569]
[1723561321914,1.70363272,146.76,146.74,16.3569]
[1723561322419,45.0,146.85,146.74,16.3569]
[1723561322420,31.26,146.79,146.74,16.3569]
[1723561322624,31.26,146.81,146.74,16.3569]
[1723561322926,38.37730122,146.86,146.74,26.5891106]
[1723561322927,31.26,146.83,146.74,26.5891106]
[1723561323231,31.26,146.83,146.75,55.3577006]
[1723561323755,7.11730122,146.86,146.76,0.25098]
[1723561323919,39.02,146.88,146.8,0.12549]
[1723561324121,56.0355,146.93,146.82,0.12549]
[1723561324122,39.02,146.9,146.82,0.12549]
[1723561324340,39.02,146.9,146.82,0.25098]
[1723561324647,39.02,146.9,146.83,0.12549]
[1723561324861,39.02,146.92,146.84,0.12549]
[1723561325027,39.02,146.92,146.84,0.37647]
[1723561325349,39.02,146.92,146.85,0.12549]
[1723561325657,45.8265,146.92,146.86,0.12549]
[1723561325861,45.8265,146.92,146.86,0.37647]
[1723561325862,39.02,146.92,146.86,0.37647]
[1723561326023,39.8475496,146.94,146.86,0.37647]
[1723561326343,39.8475496,146.94,146.87,0.12549]
[1723561326847,39.02,146.92,146.87,0.37647]
[1723561327047,1.70212468,146.91,146.87,0.25098]
[1723561327228,1.70212468,146.91,146.87,0.12549]
[1723561327423,1.70212468,146.91,146.86,0.25098]
[1723561327826,45.8265,146.92,146.86,0.25098]
[1723561328261,1.70215712,146.91,146.86,0.25098]
[1723561328418,39.02,146.92,146.86,0.25098]
[1723561328624,39.02,146.92,146.88,0.12549]
[1723561328827,0.8275496,146.94,146.9,0.12549]
[1723561329046,0.8275496,146.94,146.9,45.50196]
[1723561329227,0.8275496,146.94,146.9,0.12549]
[1723561329439,0.8275496,146.94,146.89,15.3806]
[1723561329827,1.70190196,146.93,146.89,15.3806]
[1723561330031,1.70192933,146.92,146.89,15.3806]
[1723561330345,39.02,146.93,146.89,15.3806]
[1723561331027,0.8275496,146.94,146.89,15.3806]
[1723561331246,0.8275496,146.94,146.9,45.50196]
[1723561333738,0.8275496,146.94,146.89,15.3806]
[1723561334065,39.02,146.93,146.89,15.3806]
[1723561334354,1.70193004,146.92,146.89,15.3806]
[1723561334547,39.02,146.93,146.89,15.3806]
[1723561334850,1.70201834,146.92,146.89,15.3806]
[1723561335063,1.70201834,146.92,146.85,16.2181]
[1723561335237,39.02,146.93,146.85,16.2181]
[1723561335948,39.02,146.93,146.86,0.12549]
[1723561336146,0.8275496,146.94,146.86,45.25098]
[1723561336147,6.8064,146.92,146.86,45.25098]
[1723561336364,45.8271,146.91,146.86,45.0]
[1723561336566,1.70228041,146.9,146.85,16.2181]
[1723561336873,1.70232892,146.89,146.85,16.2181]
[1723561337038,39.02,146.91,146.85,16.2181]
[1723561337956,39.02,146.93,146.85,16.2181]
[1723561338153,0.8275496,146.94,146.86,0.25098]
[1723561338348,0.8275496,146.94,146.85,16.2181]
[1723561338349,39.02,146.93,146.85,16.2181]
[1723561338666,39.02,146.91,146.85,16.2181]
[1723561338841,40.72237637,146.91,146.85,16.2181]
[1723561339042,0.8275496,146.94,146.85,16.2181]
[1723561339369,27.6330496,146.94,146.85,16.2181]
[1723561339869,27.6330496,146.94,146.86,45.50196]
[1723561340270,20.8275496,146.94,146.86,45.50196]
[1723561340775,29.33517092,146.94,146.86,45.50196]
[1723561341279,0.8275496,146.94,146.86,45.50196]
[1723561341739,39.02,146.93,146.86,45.50196]
[1723561342161,1.70212132,146.92,146.86,45.50196]
[1723561342464,39.02,146.93,146.86,45.50196]
[1723561342865,45.8262,146.93,146.86,45.50196]
[1723561343240,6.8066,146.92,146.86,45.25098]
[1723561343477,45.8275,146.9,146.85,16.2181]
[1723561343650,39.02,146.88,146.81,16.0049]
[1723561343846,31.22,146.87,146.81,16.0049]
[1723561344478,31.22,146.89,146.81,16.0049]
[1723561344777,31.22,146.91,146.81,16.0049]
[1723561345072,31.22,146.93,146.82,0.12549]
[1723561345281,31.22,146.93,146.82,20.50196]
[1723561345466,0.8275496,146.94,146.84,0.12549]
[1723561345775,0.8275496,146.94,146.84,20.37647]